fUSD/lending_fUSD_20250115
["ID","MTS","AMOUNT","RATE_DAILY","PERIOD"]
[349008967,1736934652481,-550.03,0.00011642,2]
[349008968,1736934652492,-500.0,0.00011642,2]
[349008969,1736934652502,-500.0,0.00011642,2]
[349008970,1736934652512,-500.0,0.00011642,2]
[349008971,1736934652521,-537.61,0.00011642,2]
[349008972,1736934652530,-500.0,0.00011642,2]
[349008973,1736934652542,-687.88,0.00011642,2]
[349008974,1736934652551,-500.0,0.00011642,2]
[349008975,1736934652564,-500.0,0.00011642,2]
[349008976,1736934652574,-500.0,0.00011642,2]
[349008977,1736934652584,-612.43,0.00011642,2]
[349008978,1736934652594,-500.0,0.00011642,2]
[349008979,1736934652604,-500.0,0.00011642,2]
[349008980,1736934652613,-500.0,0.00011642,2]
[349008981,1736934652624,-500.0,0.00011642,2]
[349008982,1736934652635,-534.24,0.00011642,2]
[349008983,1736934652645,-500.0,0.00011642,2]
[349008984,1736934652655,-500.0,0.00011642,2]
[349008985,1736934652665,-678.53,0.00011642,2]
[349008986,1736934652675,-500.0,0.00011642,2]
[349008987,1736934652689,-500.0,0.00011642,2]
[349008988,1736934652700,-245.56,0.00011642,2]
[349008989,1736934652709,-500.0,0.00011642,2]
[349008990,1736934652719,-500.0,0.00011642,2]
[349008991,1736934652730,-500.0,0.00011642,2]
[349008992,1736934652740,-500.0,0.00011642,2]
[349008993,1736934652750,-518.03228948,0.00011643,2]
[349008994,1736934652761,-500.0,0.00011643,2]
[349008995,1736934652770,-215.68569713,0.00011643,2]
[349008996,1736934652780,-500.0,0.00011643,2]
[349008997,1736934652790,-500.0,0.00011643,2]
[349008998,1736934652800,-500.0,0.00011643,2]
[349008999,1736934652814,-500.0,0.00011643,2]
[349009000,1736934652824,-500.0,0.00011643,2]
[349009001,1736934652835,-500.0,0.00011643,2]
[349009002,1736934652845,-500.0,0.00011643,2]
[349009003,1736934652855,-500.0,0.00011643,2]
[349009004,1736934652864,-390.67211508,0.00011643,2]
[349009005,1736934652874,-243.66444744,0.00011643,2]
[349009006,1736934652883,-500.0,0.00011643,2]
[349009007,1736934652893,-500.0,0.00011643,2]
[349009008,1736934652903,-500.0,0.00011643,2]
[349009009,1736934652913,-500.0,0.00011643,2]
[349009010,1736934652922,-500.0,0.00011643,2]
[349009011,1736934652932,-500.0,0.00011643,2]
[349009012,1736934652982,-500.0,0.00011643,2]
[349009013,1736934652993,-500.0,0.00011643,2]
[349009014,1736934653003,-500.0,0.00011643,2]
[349009015,1736934653013,-500.0,0.00011643,2]
[349009016,1736934653023,-500.0,0.00011643,2]
[349009017,1736934653033,-500.0,0.00011643,2]
[349009018,1736934653043,-500.0,0.00011643,2]
[349009019,1736934653052,-201.18934239,0.00011804,2]
[349009020,1736934653063,-525.34278929,0.00011814,2]
[349009021,1736934653074,-349.29,0.00011878,2]
[349009022,1736934653083,-500.0,0.00011915,2]
[349009023,1736934653092,-500.0,0.00011915,2]
[349009024,1736934653102,-500.0,0.00011915,2]
[349009025,1736934653112,-500.0,0.00011915,2]
[349009026,1736934653122,-106065.13869487,0.00011915,2]
[349009027,1736934653132,-602.3,0.00011916,2]
[349009028,1736934653142,-202.01,0.00011916,2]
[349009029,1736934653152,-357.81,0.00011916,2]
[349009030,1736934653162,-500.0,0.00011916,2]
[349009031,1736934653173,-500.0,0.00011916,2]
[349009032,1736934653182,-208.55,0.00011916,2]
[349009033,1736934653193,-329.265257,0.00011916,2]
[349009034,1736934653203,-195.46,0.00011916,2]
[349009035,1736934653213,-428.85,0.00011916,2]
[349009036,1736934653223,-500.0,0.00011916,2]
[349009037,1736934653233,-500.0,0.00011916,2]
[349009038,1736934653243,-300.93,0.00011916,2]
[349009039,1736934653254,-265.910146,0.00011916,2]
[349009040,1736934653264,-292.86,0.00011916,2]
[349009041,1736934653275,-500.0,0.00011916,2]
[349009042,1736934653284,-738.58,0.00011916,2]
[349009043,1736934653294,-500.0,0.00011916,2]
[349009044,1736934653303,-500.0,0.00011916,2]
[349009045,1736934653315,-500.0,0.00011916,2]
[349009046,1736934653327,-500.0,0.00011916,2]
[349009047,1736934653337,-557.76,0.00011916,2]
[349009048,1736934653347,-500.0,0.00011916,2]
[349009049,1736934653356,-500.0,0.00011916,2]
[349009050,1736934653365,-500.0,0.00011916,2]
[349009051,1736934653374,-500.0,0.00011916,2]
[349009052,1736934653383,-500.0,0.00011916,2]
[349009053,1736934653393,-500.0,0.00011916,2]
[349009054,1736934653401,-500.0,0.00011916,2]
[349009055,1736934653411,-500.0,0.00011916,2]
[349009056,1736934653420,-500.0,0.00011916,2]
[349009057,1736934653429,-550.03,0.00011916,2]
[349009058,1736934653438,-275.89815298,0.00011916,2]
[349009059,1736934653448,-500.0,0.00011916,2]
[349009060,1736934653458,-537.61,0.00011916,2]
[349009061,1736934653467,-500.0,0.00011916,2]
[349009062,1736934653477,-687.88,0.00011916,2]
[349009063,1736934653486,-500.0,0.00011916,2]
[349009064,1736934653496,-500.0,0.00011916,2]
[349009065,1736934653506,-612.43,0.00011916,2]
[349009066,1736934653515,-500.0,0.00011916,2]
[349009067,1736934653525,-500.0,0.00011916,2]
[349009068,1736934653534,-500.0,0.00011916,2]
[349009069,1736934653544,-500.0,0.00011916,2]
[349009070,1736934653554,-534.24,0.00011916,2]
[349009071,1736934653566,-500.0,0.00011916,2]
[349009072,1736934653577,-500.0,0.00011916,2]
[349009073,1736934653587,-678.53,0.00011916,2]
[349009074,1736934653597,-500.0,0.00011916,2]
[349009075,1736934653607,-500.0,0.00011916,2]
[349009076,1736934653617,-500.0,0.00011916,2]
[349009077,1736934653627,-500.0,0.00011916,2]
[349009078,1736934653637,-500.0,0.00011916,2]
[349009079,1736934653647,-172.72,0.00011917,2]
[349009080,1736934653657,-500.0,0.00011917,2]
[349009081,1736934653667,-500.0,0.00011917,2]
[349009082,1736934653678,-500.0,0.00011917,2]
[349009083,1736934653688,-500.0,0.00011917,2]
[349009084,1736934653698,-500.0,0.00011917,2]
[349009085,1736934653708,-500.0,0.00011917,2]
[349009086,1736934653719,-500.0,0.00011917,2]
[349009087,1736934653730,-235.22571281,0.00011917,2]
[349009088,1736934653740,-500.0,0.00011917,2]
[349009089,1736934653750,-500.0,0.00011917,2]
[349009090,1736934653759,-500.0,0.00011917,2]
[349009091,1736934653770,-500.0,0.00011917,2]
[349009092,1736934653780,-500.0,0.00011917,2]
[349009093,1736934653790,-500.0,0.00011917,2]
[349009094,1736934653800,-500.0,0.00011917,2]
[349009095,1736934653812,-500.0,0.00011917,2]
[349009096,1736934653822,-500.0,0.00011917,2]
[349009097,1736934653832,-500.0,0.00011917,2]
[349009098,1736934653842,-200.0,0.00012055,2]
[349009099,1736934653851,-500.0,0.00012189,2]
[349009100,1736934653862,-500.0,0.00012189,2]
[349009101,1736934653871,-581.12,0.00012189,2]
[349009102,1736934653881,-528.48,0.0001219,2]
[349009103,1736934653891,-379.25,0.0001219,2]
[349009104,1736934653901,-329.265257,0.0001219,2]
[349009105,1736934653911,-227.02,0.0001219,2]
[349009106,1736934653920,-350.52,0.0001219,2]
[349009107,1736934653929,-265.910146,0.0001219,2]
[349009108,1736934653939,-500.0,0.0001219,2]
[349009109,1736934653949,-738.58,0.0001219,2]
[349009110,1736934653959,-500.0,0.0001219,2]
[349009111,1736934653969,-500.0,0.0001219,2]
[349009112,1736934653979,-500.0,0.0001219,2]
[349009113,1736934653989,-514.26,0.0001219,2]
[349009114,1736934653999,-274.12,0.0001219,2]
[349009115,1736934654008,-500.0,0.0001219,2]
[349009116,1736934654018,-500.0,0.0001219,2]
[349009117,1736934654027,-500.0,0.0001219,2]
[349009118,1736934654037,-500.0,0.0001219,2]
[349009119,1736934654047,-500.0,0.0001219,2]
[349009120,1736934654056,-215.95,0.0001219,2]
[349009121,1736934654067,-500.0,0.0001219,2]
[349009122,1736934654077,-500.0,0.0001219,2]
[349009123,1736934654087,-550.03,0.0001219,2]
[349009124,1736934654096,-500.0,0.0001219,2]
[349009125,1736934654105,-537.61,0.0001219,2]
[349009126,1736934654115,-500.0,0.0001219,2]
[349009127,1736934654124,-687.88,0.0001219,2]
[349009128,1736934654134,-500.0,0.0001219,2]
[349009129,1736934654144,-500.0,0.0001219,2]
[349009130,1736934654153,-500.0,0.0001219,2]
[349009131,1736934654163,-612.43,0.0001219,2]
[349009132,1736934654172,-500.0,0.0001219,2]
[349009133,1736934654181,-500.0,0.0001219,2]
[349009134,1736934654191,-500.0,0.0001219,2]
[349009135,1736934654201,-534.24,0.0001219,2]
[349009136,1736934654210,-448.0430943,0.0001219,2]
[349009137,1736934654220,-500.0,0.0001219,2]
[349009138,1736934654229,-678.53,0.0001219,2]
[349009139,1736934654237,-419.22552039,0.0001219,2]
[349009140,1736934654247,-500.0,0.0001219,2]
[349009141,1736934654256,-500.0,0.0001219,2]
[349009142,1736934654266,-182.13506658,0.0001219,2]
[349009143,1736934654276,-500.0,0.00012191,2]
[349009144,1736934654285,-500.0,0.00012191,2]
[349009145,1736934654295,-500.0,0.00012191,2]
[349009146,1736934654305,-500.0,0.00012191,2]
[349009147,1736934654316,-500.0,0.00012191,2]
[349009148,1736934654326,-500.0,0.00012191,2]
[349009149,1736934654336,-500.0,0.00012191,2]
[349009150,1736934654346,-500.0,0.00012191,2]
[349009151,1736934654356,-500.0,0.00012191,2]
[349009152,1736934654366,-500.0,0.00012191,2]
[349009153,1736934654375,-500.0,0.00012191,2]
[349009154,1736934654385,-500.0,0.00012191,2]
[349009155,1736934654395,-500.0,0.00012191,2]
[349009156,1736934654405,-500.0,0.00012191,2]
[349009157,1736934654415,-201.18934239,0.00012285,2]
[349009158,1736934654424,-193.81,0.00012329,2]
[349009159,1736934654434,-3000.0,0.000124,2]
[349009160,1736934654443,-600.0,0.00012441,2]
[349009161,1736934654453,-500.0,0.00012463,2]
[349009162,1736934654463,-500.0,0.00012463,2]
[349009163,1736934654472,-329.265257,0.00012464,2]
[349009164,1736934654483,-265.910146,0.00012464,2]
[349009165,1736934654492,-500.0,0.00012464,2]
[349009166,1736934654501,-738.58,0.00012464,2]
[349009167,1736934654511,-559.94,0.00012464,2]
[349009168,1736934654520,-500.0,0.00012464,2]
[349009169,1736934654530,-500.0,0.00012464,2]
[349009170,1736934654540,-500.0,0.00012464,2]
[349009171,1736934654549,-500.0,0.00012464,2]
[349009172,1736934654559,-500.0,0.00012464,2]
[349009173,1736934654569,-500.0,0.00012464,2]
[349009174,1736934654580,-500.0,0.00012464,2]
[349009175,1736934654589,-500.0,0.00012464,2]
[349009176,1736934654599,-500.0,0.00012464,2]
[349009177,1736934654609,-550.03,0.00012464,2]
[349009178,1736934654618,-500.0,0.00012464,2]
[349009179,1736934654627,-537.61,0.00012464,2]
[349009180,1736934654637,-500.0,0.00012464,2]
[349009181,1736934654646,-687.88,0.00012464,2]
[349009182,1736934654656,-253.83,0.00012464,2]
[349009183,1736934654666,-500.0,0.00012464,2]
[349009184,1736934654675,-549.9772775,0.00012464,2]
[349009185,1736934654685,-612.43,0.00012464,2]
[349009186,1736934654697,-500.0,0.00012464,2]
[349009187,1736934654707,-500.0,0.00012464,2]
[349009188,1736934654717,-500.0,0.00012464,2]
[349009189,1736934654727,-534.24,0.00012464,2]
[349009190,1736934654737,-500.0,0.00012464,2]
[349009191,1736934654747,-678.53,0.00012464,2]
[349009192,1736934654757,-439.55,0.00012464,2]
[349009193,1736934654767,-500.0,0.00012464,2]
[349009194,1736934654777,-640.62,0.00012465,2]
[349009195,1736934654787,-500.0,0.00012465,2]
[349009196,1736934654797,-500.0,0.00012465,2]
[349009197,1736934654809,-500.0,0.00012465,2]
[349009198,1736934654819,-500.0,0.00012465,2]
[349009199,1736934654828,-500.0,0.00012465,2]
[349009200,1736934654837,-500.0,0.00012465,2]
[349009201,1736934654847,-603.92,0.00012465,2]
[349009202,1736934654857,-500.0,0.00012465,2]
[349009203,1736934654867,-500.0,0.00012465,2]
[349009204,1736934654877,-500.0,0.00012465,2]
[349009205,1736934654887,-500.0,0.00012465,2]
[349009206,1736934654896,-479.15,0.00012525,2]
[349009207,1736934654905,-310.5,0.0001268,2]
[349009208,1736934654914,-823.58,0.00012692,2]
[349009209,1736934654924,-500.0,0.00012737,2]
[349009210,1736934654934,-500.0,0.00012737,2]
[349009211,1736934654944,-329.265257,0.00012738,2]
[349009212,1736934654954,-265.910146,0.00012738,2]
[349009213,1736934654964,-272.8,0.00012738,2]
[349009214,1736934654974,-738.58,0.00012738,2]
[349009215,1736934654983,-500.0,0.00012738,2]
[349009216,1736934654993,-500.0,0.00012738,2]
[349009217,1736934655003,-500.0,0.00012738,2]
[349009218,1736934655014,-500.0,0.00012738,2]
[349009219,1736934655025,-500.0,0.00012738,2]
[349009220,1736934655035,-500.0,0.00012738,2]
[349009221,1736934655045,-500.0,0.00012738,2]
[349009222,1736934655055,-500.0,0.00012738,2]
[349009223,1736934655068,-500.0,0.00012738,2]
[349009224,1736934655079,-550.03,0.00012738,2]
[349009225,1736934655089,-263.45,0.00012738,2]
[349009226,1736934655098,-537.61,0.00012738,2]
[349009227,1736934655108,-524.31,0.00012738,2]
[349009228,1736934655118,-687.88,0.00012738,2]
[349009229,1736934655129,-500.0,0.00012738,2]
[349009230,1736934655139,-612.43,0.00012738,2]
[349009231,1736934655149,-516.83832822,0.00012738,2]
[349009232,1736934655159,-382.46,0.00012738,2]
[349009233,1736934655169,-500.0,0.00012738,2]
[349009234,1736934655179,-534.24,0.00012738,2]
[349009235,1736934655189,-678.53,0.00012738,2]
[349009236,1736934655199,-500.0,0.00012738,2]
[349009237,1736934655208,-500.0,0.00012738,2]
[349009238,1736934655219,-500.0,0.00012739,2]
[349009239,1736934655229,-500.0,0.00012739,2]
[349009240,1736934655240,-500.0,0.00012739,2]
[349009241,1736934655251,-500.0,0.00012739,2]
[349009242,1736934655260,-500.0,0.00012739,2]
[349009243,1736934655270,-500.0,0.00012739,2]
[349009244,1736934655280,-500.0,0.00012739,2]
[349009245,1736934655289,-618.95,0.00012739,2]
[349009246,1736934655299,-500.0,0.00012739,2]
[349009247,1736934655312,-201.18934239,0.00012765,2]
[349009248,1736934655325,-349.29,0.00012957,2]
[349009249,1736934655335,-600.0,0.00013,2]
[349009250,1736934655345,-469.33,0.00013011,2]
[349009251,1736934655355,-207.54,0.00013011,2]
[349009252,1736934655366,-329.265257,0.00013012,2]
[349009253,1736934655376,-265.910146,0.00013012,2]
[349009254,1736934655386,-738.58,0.00013012,2]
[349009255,1736934655395,-500.0,0.00013012,2]
[349009256,1736934655405,-500.0,0.00013012,2]
[349009257,1736934655415,-500.0,0.00013012,2]
[349009258,1736934655425,-500.0,0.00013012,2]
[349009259,1736934655435,-500.0,0.00013012,2]
[349009260,1736934655445,-500.0,0.00013012,2]
[349009261,1736934655455,-500.0,0.00013012,2]
[349009262,1736934655466,-460.95,0.00013012,2]
[349009263,1736934655476,-500.0,0.00013012,2]
[349009264,1736934655489,-550.03,0.00013012,2]
[349009265,1736934655498,-537.61,0.00013012,2]
[349009266,1736934655508,-687.88,0.00013012,2]
[349009267,1736934655518,-500.0,0.00013012,2]
[349009268,1736934655528,-612.43,0.00013012,2]
[349009269,1736934655537,-493.35620418,0.00013012,2]
[349009270,1736934655547,-534.24,0.00013012,2]
[349009271,1736934655557,-678.53,0.00013012,2]
[349009272,1736934655575,-312.8358397,0.00013012,2]
[349009273,1736934655584,-500.0,0.00013012,2]
[349009274,1736934655594,-500.0,0.00013013,2]
[349009275,1736934655604,-500.0,0.00013013,2]
[349009276,1736934655614,-500.0,0.00013013,2]
[349009277,1736934655624,-500.0,0.00013013,2]
[349009278,1736934655634,-500.0,0.00013013,2]
[349009279,1736934655643,-600.40862432,0.00013013,2]
[349009280,1736934655653,-500.0,0.00013013,2]
[349009281,1736934655663,-170.80184989,0.00013013,2]
[349009282,1736934655673,-500.0,0.00013013,2]
[349009283,1736934655683,-407.09596663,0.00013137,2]
[349009284,1736934655693,-201.18934239,0.00013246,2]
[349009285,1736934655703,-329.265257,0.00013286,2]
[349009286,1736934655713,-265.910146,0.00013286,2]
[349009287,1736934655725,-329.94,0.00013286,2]
[349009288,1736934655734,-738.58,0.00013286,2]
[349009289,1736934655745,-500.0,0.00013286,2]
[349009290,1736934655756,-500.0,0.00013286,2]
[349009291,1736934655767,-500.0,0.00013286,2]
[349009292,1736934655779,-500.0,0.00013286,2]
[349009293,1736934655791,-500.0,0.00013286,2]
[349009294,1736934655803,-500.0,0.00013286,2]
[349009295,1736934655820,-478.14,0.00013286,2]
[349009296,1736934655832,-500.0,0.00013286,2]
[349009297,1736934655843,-550.03,0.00013286,2]
[349009298,1736934655854,-537.61,0.00013286,2]
[349009299,1736934655865,-687.88,0.00013286,2]
[349009300,1736934655876,-500.0,0.00013286,2]
[349009301,1736934655886,-612.43,0.00013286,2]
[349009302,1736934655896,-534.24,0.00013286,2]
[349009303,1736934655907,-678.53,0.00013286,2]
[349009304,1736934655917,-500.0,0.00013286,2]
[349009305,1736934655927,-500.0,0.00013287,2]
[349009306,1736934655937,-206.3,0.00013287,2]
[349009307,1736934655947,-500.0,0.00013287,2]
[349009308,1736934655958,-500.0,0.00013287,2]
[349009309,1736934655968,-500.0,0.00013287,2]
[349009310,1736934655978,-500.0,0.00013287,2]
[349009311,1736934655988,-738.58,0.0001356,2]
[349009312,1736934655998,-500.0,0.0001356,2]
[349009313,1736934656008,-500.0,0.0001356,2]
[349009314,1736934656017,-500.0,0.0001356,2]
[349009315,1736934656028,-150.59,0.0001356,2]
[349009316,1736934656040,-500.0,0.0001356,2]
[349009317,1736934656051,-500.0,0.0001356,2]
[349009318,1736934656065,-500.0,0.0001356,2]
[349009319,1736934656075,-550.03,0.0001356,2]
[349009320,1736934656084,-537.61,0.0001356,2]
[349009321,1736934656094,-687.88,0.0001356,2]
[349009322,1736934656103,-500.0,0.0001356,2]
[349009323,1736934656114,-612.43,0.0001356,2]
[349009324,1736934656125,-534.24,0.0001356,2]
[349009325,1736934656134,-678.53,0.0001356,2]
[349009326,1736934656144,-500.0,0.0001356,2]
[349009327,1736934656155,-281.3,0.00013561,2]
[349009328,1736934656165,-500.0,0.00013561,2]
[349009329,1736934656176,-318.45955961,0.00013561,2]
[349009330,1736934656187,-500.0,0.00013561,2]
[349009331,1736934656197,-500.0,0.00013561,2]
[349009332,1736934656207,-600.0,0.00013572,2]
[349009333,1736934656217,-200.0,0.00013699,2]
[349009334,1736934656228,-605.14618481,0.00013699,2]
[349009335,1736934656238,-201.18934239,0.00013727,2]
[349009336,1736934656247,-479.15,0.00013778,2]
[349009337,1736934656257,-738.58,0.00013834,2]
[349009338,1736934656267,-319.4,0.00013834,2]
[349009339,1736934656277,-500.0,0.00013834,2]
[349009340,1736934656287,-405.09,0.00013834,2]
[349009341,1736934656297,-500.0,0.00013834,2]
[349009342,1736934656308,-424.44,0.00013834,2]
[349009343,1736934656323,-500.0,0.00013834,2]
[349009344,1736934656334,-550.03,0.00013834,2]
[349009345,1736934656343,-537.61,0.00013834,2]
[349009346,1736934656354,-687.88,0.00013834,2]
[349009347,1736934656364,-500.0,0.00013834,2]
[349009348,1736934656374,-612.43,0.00013834,2]
[349009349,1736934656384,-534.24,0.00013834,2]
[349009350,1736934656394,-678.53,0.00013834,2]
[349009351,1736934656403,-500.0,0.00013834,2]
[349009352,1736934656413,-387.77,0.00013835,2]
[349009353,1736934656423,-500.0,0.00013835,2]
[349009354,1736934656433,-633.29,0.00013835,2]
[349009355,1736934656443,-500.0,0.00013972,2]
[349009356,1736934656453,-738.58,0.00014108,2]
[349009357,1736934656463,-500.0,0.00014108,2]
[349009358,1736934656473,-500.0,0.00014108,2]
[349009359,1736934656484,-628.44,0.00014108,2]
[349009360,1736934656495,-550.03,0.00014108,2]
[349009361,1736934656504,-537.61,0.00014108,2]
[349009362,1736934656514,-687.88,0.00014108,2]
[349009363,1736934656524,-500.0,0.00014108,2]
[349009364,1736934656534,-612.43,0.00014108,2]
[349009365,1736934656545,-534.24,0.00014108,2]
[349009366,1736934656554,-678.53,0.00014108,2]
[349009367,1736934656568,-500.0,0.00014108,2]
[349009368,1736934656579,-603.05,0.00014109,2]
[349009369,1736934656589,-201.18934239,0.00014208,2]
[349009370,1736934656599,-738.58,0.00014382,2]
[349009371,1736934656609,-500.0,0.00014382,2]
[349009372,1736934656620,-500.0,0.00014382,2]
[349009373,1736934656631,-550.03,0.00014382,2]
[349009374,1736934656641,-537.61,0.00014382,2]
[349009375,1736934656651,-687.88,0.00014382,2]
[349009376,1736934656661,-500.0,0.00014382,2]
[349009377,1736934656671,-612.43,0.00014382,2]
[349009378,1736934656682,-534.24,0.00014382,2]
[349009379,1736934656691,-678.53,0.00014382,2]
[349009380,1736934656701,-500.0,0.00014382,2]
[349009381,1736934656711,-166.81,0.00014383,2]
[349009382,1736934656722,-738.58,0.00014656,2]
[349009383,1736934656732,-500.0,0.00014656,2]
[349009384,1736934656743,-500.0,0.00014656,2]
[349009385,1736934656753,-550.03,0.00014656,2]
[349009386,1736934656764,-537.61,0.00014656,2]
[349009387,1736934656774,-687.88,0.00014656,2]
[349009388,1736934656784,-500.0,0.00014656,2]
[349009389,1736934656794,-612.43,0.00014656,2]
[349009390,1736934656804,-534.24,0.00014656,2]
[349009391,1736934656817,-678.53,0.00014656,2]
[349009392,1736934656827,-603.82,0.00014656,2]
[349009393,1736934656838,-201.18934239,0.00014688,2]
[349009394,1736934656848,-407.09596663,0.00014755,2]
[349009395,1736934656859,-3000.0,0.000149,2]
[349009396,1736934656869,-310.5,0.00014911,2]
[349009397,1736934656879,-738.58,0.0001493,2]
[349009398,1736934656888,-500.0,0.0001493,2]
[349009399,1736934656898,-500.0,0.0001493,2]
[349009400,1736934656909,-550.03,0.0001493,2]
[349009401,1736934656919,-537.61,0.0001493,2]
[349009402,1736934656929,-687.88,0.0001493,2]
[349009403,1736934656939,-242.0,0.0001493,2]
[349009404,1736934656949,-612.43,0.0001493,2]
[349009405,1736934656959,-534.24,0.0001493,2]
[349009406,1736934656969,-678.53,0.0001493,2]
[349009407,1736934656979,-220.64249375,0.00014969,2]
[349009408,1736934656989,-220.64249375,0.00014973,2]
[349009409,1736934656999,-220.64249375,0.00014977,2]
[349009410,1736934657009,-220.64249375,0.00014992,2]
[349009411,1736934657018,-220.64249375,0.00014994,2]
[349009412,1736934657027,-5465.0,0.00015,2]
[349009413,1736934657036,-650.0,0.00015,2]
[349009414,1736934657045,-479.15,0.0001503,2]
[349009415,1736934657054,-201.18934239,0.00015169,2]
[349009416,1736934657065,-738.58,0.00015204,2]
[349009417,1736934657074,-500.0,0.00015204,2]
[349009418,1736934657084,-257.41404711,0.00015204,2]
[349009419,1736934657094,-550.03,0.00015204,2]
[349009420,1736934657103,-537.61,0.00015204,2]
[349009421,1736934657114,-687.88,0.00015204,2]
[349009422,1736934657124,-612.43,0.00015204,2]
[349009423,1736934657135,-534.24,0.00015204,2]
[349009424,1736934657144,-678.53,0.00015204,2]
[349009425,1736934657155,-515.80820421,0.00015205,2]
[349009426,1736934657165,-738.58,0.00015478,2]
[349009427,1736934657175,-500.0,0.00015478,2]
[349009428,1736934657185,-550.03,0.00015478,2]
[349009429,1736934657195,-537.61,0.00015478,2]
[349009430,1736934657206,-687.88,0.00015478,2]
[349009431,1736934657216,-534.24,0.00015478,2]
[349009432,1736934657227,-612.43,0.00015478,2]
[349009433,1736934657237,-678.53,0.00015478,2]
[349009434,1736934657247,-201.18934239,0.0001565,2]
[349009435,1736934657259,-738.58,0.00015752,2]
[349009436,1736934657432,-178.2,0.00015752,2]
[349009437,1736934657444,-550.03,0.00015752,2]
[349009438,1736934657454,-537.61,0.00015752,2]
[349009439,1736934657464,-687.88,0.00015752,2]
[349009440,1736934657474,-534.24,0.00015752,2]
[349009441,1736934657484,-612.43,0.00015752,2]
[349009442,1736934657494,-678.53,0.00015752,2]
[349009443,1736934657504,-589.0,0.00016,2]
[349009444,1736934657514,-1504.494064,0.00016,7]
[349009445,1736934657524,-738.58,0.00016026,2]
[349009446,1736934657534,-550.03,0.00016026,2]
[349009447,1736934657544,-537.61,0.00016026,2]
[349009448,1736934657554,-687.88,0.00016026,2]
[349009449,1736934657568,-534.24,0.00016026,2]
[349009450,1736934657578,-612.43,0.00016026,2]
[349009451,1736934657588,-678.53,0.00016026,2]
[349009452,1736934657598,-201.18934239,0.00016131,2]
[349009453,1736934657609,-600.11211661,0.00016164,2]
[349009454,1736934657619,-500.0,0.00016164,2]
[349009455,1736934657630,-169.61,0.00016185,2]
[349009456,1736934657640,-1017.51,0.000162,2]
[349009457,1736934657650,-738.67,0.00016299,2]
[349009458,1736934657661,-550.26,0.00016299,2]
[349009459,1736934657670,-537.71,0.00016299,2]
[349009460,1736934657680,-688.1,0.00016299,2]
[349009461,1736934657693,-534.31460762,0.00016299,2]
[349009462,1736934657703,-612.63,0.00016299,2]
[349009463,1736934657713,-678.64,0.00016299,2]
[349009464,1736934657723,-407.09596663,0.00016373,2]
[349009465,1736934657734,-425.20605711,0.00016438,2]
[349009466,1736934657744,-201.18934239,0.00016612,2]